fUSD/lending_fUSD_20240708
["ID","MTS","AMOUNT","RATE_DAILY","PERIOD"]
[331460122,1720424944976,-500.0,0.00030136,30]
[331460123,1720424945019,-500.0,0.00030136,31]
[331460124,1720424945064,-531.91410996,0.00030136,32]
[331460126,1720424945104,-1703.31,0.00030136,30]
[331460129,1720424945142,-1703.31,0.00030136,31]
[331460132,1720424945190,-1703.31,0.00030136,32]
[331460135,1720424945234,-1703.31,0.00030136,33]
[331460138,1720424945280,-1703.31,0.00030136,34]
[331460141,1720424945322,-1703.31,0.00030136,35]
[331460143,1720424945365,-1703.31,0.00030136,36]
[331460144,1720424945406,-1703.31,0.00030136,37]
[331460145,1720424945447,-1703.31,0.00030136,38]
[331460146,1720424945486,-1703.31,0.00030136,39]
[331460147,1720424945527,-1703.31,0.00030136,40]
[331460148,1720424945568,-1703.31,0.00030136,41]
[331460149,1720424945607,-1703.31,0.00030136,42]
[331460150,1720424945647,-1703.31,0.00030136,43]
[331460151,1720424945685,-1703.31,0.00030136,44]
[331460152,1720424945723,-1703.31,0.00030136,45]
[331460153,1720424945760,-1703.31,0.00030136,46]
[331460154,1720424945798,-1703.31,0.00030136,47]
[331460155,1720424945835,-1703.31,0.00030136,48]
[331460156,1720424945874,-1703.31,0.00030136,49]
[331460157,1720424945912,-1703.31,0.00030136,49]
[331460158,1720424945951,-1703.31,0.00030136,49]
[331460159,1720424945989,-1703.31,0.00030136,49]
[331460160,1720424946029,-1703.45662916,0.00030136,49]
[331460161,1720424946069,-273.28196249,0.00030136,30]
[331460162,1720424946108,-799.1,0.00030136,30]
[331460163,1720424946147,-799.1,0.00030136,31]
[331460164,1720424946186,-799.1,0.00030136,32]
[331460165,1720424946225,-799.1,0.00030136,33]
[331460166,1720424946262,-985.03,0.00030136,30]
[331460167,1720424946303,-799.1,0.00030136,34]
[331460168,1720424946340,-799.1,0.00030136,35]
[331460169,1720424946378,-985.03,0.00030136,31]
[331460170,1720424946418,-799.1,0.00030136,36]
[331460171,1720424946460,-985.03,0.00030136,32]
[331460172,1720424946501,-799.1,0.00030136,37]
[331460173,1720424946541,-985.03,0.00030136,33]
[331460174,1720424946580,-799.1,0.00030136,38]
[331460175,1720424946621,-985.03,0.00030136,34]
[331460176,1720424946661,-799.1,0.00030136,39]
[331460177,1720424946700,-985.03,0.00030136,35]
[331460178,1720424946740,-799.1,0.00030136,40]
[331460179,1720424946779,-985.03,0.00030136,36]
[331460180,1720424946817,-799.1,0.00030136,41]
[331460181,1720424946856,-985.03,0.00030136,37]
[331460182,1720424946893,-799.1,0.00030136,42]
[331460183,1720424946930,-985.03,0.00030136,38]
[331460184,1720424946974,-799.1,0.00030136,43]
[331460185,1720424947013,-985.03,0.00030136,39]
[331460186,1720424947054,-799.1,0.00030136,44]
[331460187,1720424947092,-985.03,0.00030136,40]
[331460188,1720424947131,-799.1,0.00030136,45]
[331460189,1720424947171,-985.03,0.00030136,41]
[331460190,1720424947210,-799.1,0.00030136,46]
[331460191,1720424947250,-985.03,0.00030136,42]
[331460192,1720424947288,-799.1,0.00030136,47]
[331460193,1720424947328,-985.03,0.00030136,43]
[331460194,1720424947370,-799.1,0.00030136,48]
[331460195,1720424947624,-985.03,0.00030136,44]
[331460196,1720424947667,-799.1,0.00030136,49]
[331460197,1720424947709,-985.03,0.00030136,45]
[331460198,1720424947752,-799.1,0.00030136,49]
[331460199,1720424947792,-985.03,0.00030136,46]
[331460200,1720424947832,-799.1,0.00030136,49]
[331460201,1720424947870,-985.03,0.00030136,47]
[331460202,1720424947909,-799.1,0.00030136,49]
[331460203,1720424947951,-985.03,0.00030136,48]
[331460204,1720424947992,-799.15283234,0.00030136,49]
[331460205,1720424948034,-985.03,0.00030136,49]
[331460206,1720424948076,-985.03,0.00030136,49]
[331460207,1720424948116,-985.03,0.00030136,49]
[331460208,1720424948157,-985.03,0.00030136,49]
[331460209,1720424948198,-985.17,0.00030136,49]
[331460210,1720424948237,-500.0,0.00030136,30]
[331460211,1720424948276,-500.0,0.00030136,31]
[331460212,1720424948315,-500.0,0.00030136,32]
[331460213,1720424948353,-500.0,0.00030136,33]
[331460214,1720424948392,-500.0,0.00030136,34]
[331460215,1720424948430,-500.0,0.00030136,35]
[331460216,1720424948468,-500.0,0.00030136,36]
[331460217,1720424948505,-520.00848418,0.00030136,37]
[331460218,1720424948543,-695.25,0.00030136,30]
[331460219,1720424948583,-695.25,0.00030136,31]
[331460220,1720424948622,-695.25,0.00030136,32]
[331460221,1720424948662,-695.25,0.00030136,33]
[331460222,1720424948703,-695.25,0.00030136,34]
[331460223,1720424948743,-695.25,0.00030136,35]
[331460224,1720424948786,-695.25,0.00030136,36]
[331460225,1720424948824,-695.25,0.00030136,37]
[331460226,1720424948864,-695.25,0.00030136,38]
[331460227,1720424948904,-695.25,0.00030136,39]
[331460228,1720424948947,-695.25,0.00030136,40]
[331460229,1720424948990,-695.25,0.00030136,41]
[331460230,1720424949035,-695.25,0.00030136,42]
[331460231,1720424949077,-695.25,0.00030136,43]
[331460232,1720424949119,-695.25,0.00030136,44]
[331460233,1720424949160,-695.25,0.00030136,45]
[331460234,1720424949201,-695.25,0.00030136,46]
[331460235,1720424949242,-695.25,0.00030136,47]
[331460236,1720424949285,-695.25,0.00030136,48]
[331460237,1720424949330,-695.25,0.00030136,49]
[331460238,1720424949372,-695.25,0.00030136,49]
[331460239,1720424949418,-695.25,0.00030136,49]
[331460240,1720424949460,-695.25,0.00030136,49]
[331460241,1720424949502,-695.35586709,0.00030136,49]
[331460242,1720424949548,-500.0,0.00030136,30]
[331460243,1720424949595,-500.0,0.00030136,31]
[331460244,1720424949640,-500.0,0.00030136,32]
[331460245,1720424949683,-500.0,0.00030136,33]
[331460246,1720424949729,-500.0,0.00030136,34]
[331460247,1720424949772,-500.0,0.00030136,35]
[331460248,1720424949816,-500.0,0.00030136,36]
[331460249,1720424949857,-357.85698692,0.00030136,37]
[331460250,1720424949901,-584.94,0.00030136,30]
[331460251,1720424949947,-584.94,0.00030136,31]
[331460252,1720424949990,-584.94,0.00030136,32]
[331460253,1720424950034,-584.94,0.00030136,33]
[331460254,1720424950074,-584.94,0.00030136,34]
[331460255,1720424950113,-584.94,0.00030136,35]
[331460256,1720424950153,-584.94,0.00030136,36]
[331460257,1720424950194,-584.94,0.00030136,37]
[331460258,1720424950235,-584.94,0.00030136,38]
[331460259,1720424950278,-584.94,0.00030136,39]
[331460260,1720424950319,-584.94,0.00030136,40]
[331460261,1720424950358,-584.94,0.00030136,41]
[331460262,1720424950400,-584.94,0.00030136,42]
[331460263,1720424950441,-584.94,0.00030136,43]
[331460264,1720424950488,-584.94,0.00030136,44]
[331460265,1720424950533,-584.94,0.00030136,45]
[331460266,1720424950574,-584.94,0.00030136,46]
[331460267,1720424950616,-584.94,0.00030136,47]
[331460268,1720424950658,-584.94,0.00030136,48]
[331460269,1720424950706,-584.94,0.00030136,49]
[331460270,1720424950747,-584.94,0.00030136,49]
[331460271,1720424950789,-584.94,0.00030136,49]
[331460272,1720424950829,-584.94,0.00030136,49]
[331460273,1720424950869,-585.14624669,0.00030136,49]
[331460274,1720424950908,-542.97,0.00030136,30]
[331460275,1720424950952,-542.97,0.00030136,31]
[331460276,1720424950994,-542.97,0.00030136,32]
[331460277,1720424951037,-542.97,0.00030136,33]
[331460278,1720424951078,-542.97,0.00030136,34]
[331460279,1720424951120,-542.97,0.00030136,35]
[331460280,1720424951160,-542.97,0.00030136,36]
[331460281,1720424951203,-542.97,0.00030136,37]
[331460282,1720424951245,-542.97,0.00030136,38]
[331460283,1720424951287,-542.97,0.00030136,39]
[331460284,1720424951328,-542.97,0.00030136,40]
[331460285,1720424951373,-542.97,0.00030136,41]
[331460286,1720424951415,-542.97,0.00030136,42]
[331460287,1720424951459,-542.97,0.00030136,43]
[331460288,1720424951501,-542.97,0.00030136,44]
[331460289,1720424951546,-542.97,0.00030136,45]
[331460290,1720424951591,-542.97,0.00030136,46]
[331460291,1720424951634,-542.97,0.00030136,47]
[331460292,1720424951676,-542.97,0.00030136,48]
[331460293,1720424951720,-542.97,0.00030136,49]
[331460294,1720424951765,-542.97,0.00030136,49]
[331460295,1720424951812,-542.97,0.00030136,49]
[331460296,1720424951854,-542.97,0.00030136,49]
[331460297,1720424951897,-543.11195061,0.00030136,49]
[331460298,1720424951943,-200.0,0.0003015,30]
[331460299,1720424952191,-5340.57854,0.000305,30]
[331460300,1720424952239,-6675.723175,0.000308,30]
[331460301,1720424952295,-200.0,0.0003118,30]
[331460302,1720424952346,-9346.012446,0.000312,30]
[331460303,1720424952398,-10681.157081,0.000315,30]
[331460304,1720424952451,-1000.0,0.00032,120]
[331460305,1720424952499,-10681.157081,0.000322,30]
[331460306,1720424952545,-200.0,0.0003221,30]
[331460307,1720424952595,-150.0,0.00032632,120]
[331460308,1720424952640,-150.0,0.0003277,120]
[331460309,1720424952681,-2419.46,0.00032876,30]
[331460310,1720424952720,-2419.46,0.00032876,30]
[331460311,1720424952760,-2419.46,0.00032876,30]
[331460312,1720424952801,-2419.46,0.00032876,30]
[331460313,1720424952841,-2419.46,0.00032876,30]
[331460314,1720424952884,-2419.46,0.00032876,30]
[331460315,1720424952926,-2419.46,0.00032876,30]
[331460316,1720424952967,-2419.46,0.00032876,30]
[331460317,1720424953008,-2419.46,0.00032876,30]
[331460318,1720424953049,-2419.46,0.00032876,30]
[331460319,1720424953090,-2419.46,0.00032876,30]
[331460320,1720424953132,-2419.46,0.00032876,30]
[331460321,1720424953173,-2419.46,0.00032876,30]
[331460322,1720424953217,-2419.46,0.00032876,30]
[331460323,1720424953259,-2419.46,0.00032876,30]
[331460324,1720424953301,-2419.46,0.00032876,30]
[331460325,1720424953342,-2419.46,0.00032876,30]
[331460326,1720424953383,-2419.46,0.00032876,30]
[331460327,1720424953425,-2419.46,0.00032876,30]
[331460328,1720424953466,-2419.46,0.00032876,30]
[331460329,1720424953507,-2419.46,0.00032876,30]
[331460330,1720424953548,-2419.46,0.00032876,30]
[331460331,1720424953593,-2419.46,0.00032876,30]
[331460332,1720424953634,-2419.50657385,0.00032876,30]
[331460333,1720424953677,-150.0,0.00032979,120]
[331460334,1720424953720,-164.02514093,0.00033,30]
[331460335,1720424953760,-1357.2639609,0.00033,120]
[331460336,1720424953804,-150.0,0.00033116,120]
[331460337,1720424953845,-4315.79,0.00033151,120]
[331460338,1720424953887,-200.0,0.0003324,30]
[331460339,1720424953931,-150.0,0.00033353,120]
[331460340,1720424953987,-1000.0,0.000339,30]
[331460341,1720424954031,-1000.0,0.000339,30]
[331460342,1720424954072,-1000.0,0.000339,30]
[331460343,1720424954112,-5000.0,0.000339,30]
[331460344,1720424954152,-500.0,0.000339,30]
[331460345,1720424954193,-409.0,0.00033986,90]
[331460346,1720424954233,-1000.0,0.00034,120]
[331460347,1720424954275,-770.39436186,0.00034,30]
[331460348,1720424954319,-1000.99999952,0.00034,120]
[331460349,1720424954359,-162340.48612791,0.00034,30]
[331460350,1720424954400,-2000.0,0.00034,30]
[331460351,1720424954908,-1633.56,0.00034096,30]
[331460352,1720424954956,-1000.0,0.000341,30]
[331460353,1720424954999,-1000.0,0.000341,30]
[331460354,1720424955042,-280.5,0.000341,30]
[331460355,1720424955083,-3441.26,0.00034124,30]
[331460356,1720424955124,-3441.26,0.00034124,30]
[331460357,1720424955166,-3441.26,0.00034124,30]
[331460358,1720424955215,-3441.26,0.00034124,30]
[331460359,1720424955257,-313.0,0.00034201,30]
[331460360,1720424955301,-200.0,0.0003426,30]
[331460361,1720424955348,-3441.26,0.00034398,30]
[331460362,1720424955391,-3441.26,0.00034398,30]
[331460363,1720424955447,-4443.38196578,0.0003466,90]
[331460364,1720424955492,-10000.0,0.0003466,120]
[331460365,1720424955537,-3441.26,0.00034671,30]
[331460366,1720424955582,-3441.26,0.00034671,30]
[331460367,1720424955624,-150.0,0.00034917,120]
[331460368,1720424955667,-3441.26,0.00034944,30]
[331460369,1720424955709,-3441.26,0.00034944,30]
[331460370,1720424955752,-150.0,0.00034953,120]
[331460371,1720424955793,-233.25647991,0.00035,30]
[331460372,1720424955832,-8586.68036239,0.00035,30]
[331460373,1720424955872,-150.0,0.00035,120]
[331460374,1720424955912,-5777.8736628,0.00035,120]
[331460375,1720424955956,-3441.26,0.00035217,30]
[331460376,1720424956304,-3441.26,0.00035217,30]
[331460377,1720424956348,-355.01346209,0.00035423,40]
[331460378,1720424956389,-264.57550881,0.00035423,40]
[331460379,1720424956430,-150.0,0.0003544,120]
[331460380,1720424956474,-150.0,0.0003548,120]
[331460381,1720424956521,-3441.26,0.00035491,30]
[331460382,1720424956567,-3441.26,0.00035491,30]
[331460383,1720424956610,-1000.0,0.00035616,30]
[331460384,1720424956653,-3441.26,0.00035764,30]
[331460385,1720424956694,-3441.26,0.00035764,30]
[331460386,1720424956736,-1000.0,0.00035766,30]
[331460387,1720424956781,-29227.57047028,0.0003588,30]
[331460388,1720424956825,-1000.0,0.00035915,30]
[331460389,1720424956869,-3441.26,0.00036037,30]
[331460390,1720424956911,-3441.26,0.00036037,30]
[331460391,1720424956954,-1000.0,0.00036065,30]
[331460392,1720424956995,-1000.0,0.00036214,30]
[331460393,1720424957037,-3441.26,0.0003631,30]
[331460394,1720424957079,-3441.26,0.0003631,30]
[331460395,1720424957122,-1000.0,0.00036364,30]
[331460396,1720424957165,-1000.0,0.00036513,30]
[331460397,1720424957207,-3441.26,0.00036583,30]
[331460398,1720424957249,-3441.26,0.00036583,30]
[331460399,1720424957293,-1000.0,0.00036663,30]
[331460400,1720424957334,-1000.0,0.00036812,30]
[331460401,1720424957381,-3441.26,0.00036857,30]
[331460402,1720424957426,-3441.26,0.00036857,30]
[331460403,1720424957472,-1000.0,0.00036961,30]
[331460404,1720424957516,-3000.0,0.00036986,120]
[331460405,1720424957560,-1500.05419625,0.00036986,120]
[331460406,1720424957608,-9598.33955386,0.00037,30]
[331460407,1720424957652,-1000.0,0.00037111,30]
[331460408,1720424957697,-1000.0,0.0003726,30]
[331460409,1720424957738,-1000.0,0.0003741,30]
[331460410,1720424957779,-1000.0,0.00037559,30]
[331460411,1720424957822,-1000.0,0.00037709,30]
[331460412,1720424957864,-1000.0,0.00037858,30]
[331460413,1720424957904,-1000.0,0.00038,120]
[331460414,1720424957948,-861.72871243,0.00038,90]
[331460415,1720424957991,-1288.02892387,0.00038,120]
[331460416,1720424958035,-680.80509553,0.00038,120]
[331460417,1720424958079,-1000.0,0.00038007,30]
[331460418,1720424958120,-600.0,0.0003812,30]
[331460419,1720424958163,-1000.0,0.00038157,30]
[331460420,1720424958208,-1000.0,0.00038306,30]
[331460421,1720424958250,-8824.79151583,0.000384,33]
[331460422,1720424958291,-150.23389146,0.000384,33]
[331460423,1720424958332,-1000.0,0.00038456,30]
[331460424,1720424958374,-1000.0,0.00038605,30]
[331460425,1720424958416,-1000.0,0.00038755,30]
[331460426,1720424958457,-4983.70477164,0.000389,30]
[331460427,1720424958498,-1000.0,0.00038904,30]
[331460428,1720424958541,-172.24097811,0.00039,30]
[331460429,1720424958583,-880.86825946,0.00039,120]
[331460430,1720424958625,-1173.75160919,0.00039,120]
[331460431,1720424958667,-350.0,0.00039,120]
[331460432,1720424958709,-350.0,0.00039,120]
[331460433,1720424958752,-1000.0,0.00039054,30]
[331460434,1720424958794,-1000.0,0.00039203,30]
[331460435,1720424958833,-1000.0,0.00039352,30]
[331460436,1720424958874,-1000.0,0.00039502,30]
[331460437,1720424958916,-202.0,0.00039558,30]
[331460438,1720424958961,-1000.0,0.00039651,30]
[331460439,1720424959002,-296.09480412,0.000397,60]
[331460440,1720424959044,-1000.0,0.00039801,30]
[331460441,1720424959084,-50000.0,0.00039887,30]
[331460442,1720424959123,-1000.0,0.0003995,30]
[331460443,1720424959164,-50000.0,0.0004,40]
[331460444,1720424959206,-50000.0,0.0004,30]
[331460445,1720424959248,-200.05062301,0.0004,30]
[331460446,1720424959290,-151.0,0.0004,120]
[331460447,1720424959333,-167.53333333,0.0004,120]
[331460448,1720424959374,-1000.0,0.0004,120]
[331460449,1720424959412,-314.89777558,0.0004,30]
[331460450,1720424959453,-500.0,0.0004,120]
[331460451,1720424959496,-1000.0,0.0004,30]
[331460452,1720424959540,-314.64623374,0.0004,120]
[331460453,1720424959582,-188.78198158,0.0004,30]
[331460454,1720424959622,-283.0885938,0.0004,30]
[331460455,1720424959661,-310.44303709,0.0004,30]
[331460456,1720424959701,-638.6,0.0004,30]
[331460457,1720424959743,-174.78208567,0.0004,30]
[331460458,1720424959783,-200.0,0.0004,120]
[331460459,1720424959830,-229.47613606,0.0004,120]
[331460460,1720424959870,-680.80509553,0.0004,120]
[331460461,1720424959912,-807.0,0.0004,120]
[331460462,1720424959954,-317.0,0.0004,60]
[331460463,1720424959996,-29147.75702253,0.0004,30]
[331460464,1720424960039,-33050.67826012,0.0004,30]
[331460465,1720424960080,-40559.77517468,0.0004,30]
[331460466,1720424960122,-365.03,0.0004,120]
[331460467,1720424960164,-345.09,0.0004,120]
[331460468,1720424960206,-346.20795822,0.0004,30]
[331460469,1720424960247,-888.2461731,0.0004001,30]
[331460470,1720424960290,-1000.0,0.000401,30]
[331460471,1720424960332,-1000.0,0.00040249,30]
[331460472,1720424960374,-261.70712475,0.0004025,120]
[331460473,1720424960415,-1000.0,0.00040399,30]
[331460474,1720424960457,-535.45930356,0.00040472,120]
[331460475,1720424960499,-1000.0,0.00040548,30]
[331460476,1720424960542,-1000.0,0.00040697,30]
[331460477,1720424960584,-167.53333333,0.00040712,120]
[331460478,1720424960881,-1000.0,0.00040847,30]
[331460479,1720424960927,-1359.22651134,0.00040888,60]
[331460480,1720424960972,-1000.0,0.00040996,30]
[331460481,1720424961018,-50000.0,0.00041,41]
[331460482,1720424961070,-50000.0,0.00041,31]
[331460483,1720424961116,-170.86177976,0.00041,60]
[331460484,1720424961161,-1188.74650992,0.00041,30]
[331460485,1720424961205,-2479.74892136,0.00041,30]
[331460486,1720424961247,-500.0,0.00041095,90]
[331460487,1720424961295,-500.0,0.00041095,90]
[331460488,1720424961341,-500.0,0.00041095,90]
[331460489,1720424961388,-500.0,0.00041095,90]
[331460490,1720424961434,-500.0,0.00041095,90]
[331460491,1720424961478,-500.0,0.00041095,90]
[331460492,1720424961522,-500.0,0.00041095,90]
[331460493,1720424961568,-500.0,0.00041095,90]
[331460494,1720424961613,-500.0,0.00041095,90]
[331460495,1720424961661,-500.0,0.00041095,90]
[331460496,1720424961707,-500.0,0.00041095,90]
[331460497,1720424961749,-500.0,0.00041095,90]
[331460498,1720424961795,-500.0,0.00041095,90]
[331460499,1720424961839,-500.0,0.00041095,90]
[331460500,1720424961882,-500.0,0.00041095,90]
[331460501,1720424961926,-500.0,0.00041095,90]
[331460502,1720424961970,-500.0,0.00041095,90]
[331460503,1720424962014,-500.0,0.00041095,90]
[331460504,1720424962058,-500.0,0.00041095,90]
[331460505,1720424962100,-500.0,0.00041095,90]
[331460506,1720424962143,-500.0,0.00041095,90]
[331460507,1720424962184,-256.79130354,0.00041095,90]
[331460508,1720424962228,-500.0,0.00041095,30]
[331460509,1720424962270,-500.0,0.00041095,31]
[331460510,1720424962317,-500.0,0.00041095,32]
[331460511,1720424962360,-500.0,0.00041095,33]
[331460512,1720424962403,-500.0,0.00041095,34]
[331460513,1720424962444,-500.0,0.00041095,35]
[331460514,1720424962484,-500.0,0.00041095,36]
[331460515,1720424962524,-500.0,0.00041095,37]
[331460516,1720424962569,-500.0,0.00041095,38]
[331460517,1720424962615,-500.0,0.00041095,39]
[331460518,1720424962658,-500.0,0.00041095,40]
[331460519,1720424962703,-500.0,0.00041095,41]
[331460520,1720424962745,-500.0,0.00041095,42]
[331460521,1720424962789,-500.0,0.00041095,43]
[331460522,1720424962830,-500.0,0.00041095,44]
[331460523,1720424962870,-500.0,0.00041095,45]
[331460524,1720424962910,-500.0,0.00041095,46]
[331460525,1720424962951,-500.0,0.00041095,47]
[331460526,1720424962995,-500.0,0.00041095,48]
[331460527,1720424963041,-500.0,0.00041095,49]
[331460528,1720424963083,-500.0,0.00041095,50]
[331460529,1720424963123,-500.0,0.00041095,30]
[331460530,1720424963164,-500.0,0.00041095,31]
[331460531,1720424963206,-500.0,0.00041095,32]
[331460532,1720424963247,-500.0,0.00041095,33]
[331460533,1720424963290,-500.0,0.00041095,34]
[331460534,1720424963331,-500.0,0.00041095,35]
[331460535,1720424963370,-500.0,0.00041095,36]
[331460536,1720424963410,-500.0,0.00041095,37]
[331460537,1720424963450,-500.0,0.00041095,38]
[331460538,1720424963490,-500.0,0.00041095,39]
[331460539,1720424963529,-500.0,0.00041095,40]
[331460540,1720424963571,-500.0,0.00041095,41]
[331460541,1720424963612,-500.0,0.00041095,42]
[331460542,1720424963652,-500.0,0.00041095,43]
[331460543,1720424963691,-500.0,0.00041095,44]
[331460544,1720424963729,-500.0,0.00041095,45]
[331460545,1720424963768,-568.65586914,0.00041095,46]
[331460546,1720424963807,-515.09300028,0.00041095,30]
[331460547,1720424963846,-600.0,0.00041096,120]
[331460548,1720424963885,-1000.0,0.00041146,30]
[331460549,1720424963928,-1000.0,0.00041295,30]
[331460550,1720424963968,-151.0,0.00041342,120]
[331460551,1720424964011,-167.53333333,0.00041425,120]
[331460552,1720424964053,-1000.0,0.00041445,30]
[331460553,1720424964093,-1000.0,0.00041594,30]
[331460554,1720424964134,-1000.0,0.00041743,30]
[331460555,1720424964175,-1000.0,0.00041893,30]
[331460556,1720424964219,-50000.0,0.00042,42]
[331460557,1720424964261,-50000.0,0.00042,32]
[331460558,1720424964301,-3733.55717563,0.00042,120]
[331460559,1720424964341,-1000.0,0.00042042,30]
[331460560,1720424964385,-167.53333333,0.00042137,120]
[331460561,1720424964427,-1000.0,0.00042192,30]
[331460562,1720424964470,-302.070808,0.00042198,109]
[331460563,1720424964511,-1000.0,0.00042341,30]
[331460564,1720424964552,-1000.0,0.00042491,30]
[331460565,1720424964598,-302.070808,0.00042498,111]
[331460566,1720424964641,-358.29,0.000425,120]
[331460567,1720424964684,-353.01,0.000425,120]
[331460568,1720424964728,-600.0,0.00042501,120]
[331460569,1720424964769,-1000.0,0.0004264,30]
[331460570,1720424964812,-151.0,0.00042685,120]
[331460571,1720424964854,-1000.0,0.0004279,30]
[331460572,1720424964897,-302.070808,0.00042798,113]
[331460573,1720424964939,-167.53333333,0.00042849,120]
[331460574,1720424964987,-34323.06559769,0.000429,120]
[331460575,1720424965028,-1000.0,0.00042939,30]
[331460576,1720424965073,-50000.0,0.00043,43]
[331460577,1720424965116,-50000.0,0.00043,33]
[331460578,1720424965156,-532.82394759,0.00043,30]
[331460579,1720424965197,-1361.61019106,0.00043,120]
[331460580,1720424965241,-3120.04157633,0.00043,60]
[331460581,1720424965283,-1000.0,0.00043088,30]
[331460582,1720424965545,-302.070808,0.00043198,115]
[331460583,1720424965590,-1000.0,0.00043238,30]
[331460584,1720424965634,-1000.0,0.00043387,30]
[331460585,1720424965679,-302.070808,0.00043498,113]
[331460586,1720424965722,-1000.0,0.00043537,30]
[331460587,1720424965762,-167.53333333,0.00043562,120]
[331460588,1720424965804,-1000.0,0.00043686,30]
[331460589,1720424965849,-225.87511993,0.00043698,120]
[331460590,1720424965888,-200.1822117,0.000437,120]
[331460591,1720424965931,-302.070808,0.00043798,111]
[331460592,1720424965972,-535.06973358,0.000438,111]
[331460593,1720424966016,-2811.7,0.00043835,30]
[331460594,1720424966063,-2811.7,0.00043835,31]
[331460595,1720424966104,-2811.7,0.00043835,32]
[331460596,1720424966143,-2811.7,0.00043835,33]
[331460597,1720424966183,-2811.7,0.00043835,34]
[331460598,1720424966222,-2811.7,0.00043835,35]
[331460599,1720424966261,-2811.7,0.00043835,36]
[331460600,1720424966302,-2811.7,0.00043835,37]
[331460601,1720424966343,-2811.7,0.00043835,38]
[331460602,1720424966381,-2811.7,0.00043835,39]
[331460603,1720424966421,-2811.7,0.00043835,40]
[331460604,1720424966460,-2811.7,0.00043835,41]
[331460605,1720424966500,-2811.7,0.00043835,42]
[331460606,1720424966541,-2811.7,0.00043835,43]
[331460607,1720424966582,-2811.7,0.00043835,44]
[331460608,1720424966626,-2811.7,0.00043835,45]
[331460609,1720424966668,-2811.7,0.00043835,46]
[331460610,1720424966710,-2811.7,0.00043835,47]
[331460611,1720424966750,-2811.7,0.00043835,48]
[331460612,1720424966790,-2811.7,0.00043835,49]
[331460613,1720424966829,-2811.7,0.00043835,50]
[331460614,1720424966867,-2811.7,0.00043835,51]
[331460615,1720424966906,-2811.7,0.00043835,52]
[331460616,1720424966948,-2811.8318676,0.00043835,53]
[331460617,1720424966990,-1301.90916723,0.00043836,30]
[331460618,1720424967033,-1091.89413053,0.000439,120]
[331460619,1720424967074,-600.0,0.00043906,120]
[331460620,1720424967115,-50000.0,0.00044,44]
[331460621,1720424967157,-50000.0,0.00044,34]
[331460622,1720424967197,-1492.41949326,0.00044,30]
[331460623,1720424967238,-2232.0,0.00044,30]
[331460624,1720424967283,-151.0,0.00044027,120]
[331460625,1720424967326,-302.070808,0.00044198,113]
[331460626,1720424967365,-167.53333333,0.00044274,120]
[331460627,1720424967403,-167.63226027,0.0004438,120]
[331460628,1720424967442,-168.13,0.0004438,120]
[331460629,1720424967480,-167.81976027,0.0004438,120]
[331460630,1720424967520,-167.81976027,0.0004438,120]
[331460631,1720424967559,-167.81976027,0.0004438,120]
[331460632,1720424967600,-167.81976027,0.0004438,120]
[331460633,1720424967638,-167.81976027,0.0004438,120]